bitfinex/quotes_ETHUSD_20241116
["timestamp","ask_amount","ask_price","bid_price","bid_amount"]
[1731722556571,4.0524,3096.1,3095.3,4.653943]
[1731722556870,0.8225,3095.9,3094.4,2.00375339]
[1731722557102,3.23067,3095.4,3094.7,3.2313]
[1731722557303,3.23065,3095.4,3094.7,3.2313]
[1731722557472,3.23065,3095.4,3094.8,0.69286154]
[1731722558004,3.23065,3095.4,3094.9,0.06]
[1731722558310,3.2307,3095.3,3094.9,0.06]
[1731722558667,3.23083,3095.2,3094.9,0.06]
[1731722558923,3.2307,3095.3,3094.9,0.06]
[1731722558924,3.23094,3095.1,3094.9,0.06]
[1731722559419,3.23114,3094.9,3094.5,0.7519]
[1731722559572,3.23114,3094.9,3094.5,0.8419]
[1731722559971,3.23094,3095.1,3094.5,0.8419]
[1731722560737,3.23143,3094.6,3094.5,0.09]
[1731722560906,7.05393,3094.6,3094.5,0.09]
[1731722561230,7.05393,3094.6,3093.2,0.63940236]
[1731722561231,3.8225,3094.6,3093.2,0.63940236]
[1731722561545,3.23234,3093.8,3093.3,0.09]
[1731722562316,3.23207,3094.0,3093.3,0.09]
[1731722562508,3.2322,3093.9,3093.3,0.09]
[1731722563042,3.23153,3094.6,3093.6,3.4779467]
[1731722563219,3.23153,3094.6,3094.0,0.7019]
[1731722563846,3.23159,3094.5,3094.0,0.7019]
[1731722564222,3.23133,3094.7,3094.0,0.7019]
[1731722564403,3.2316,3094.5,3094.0,0.7019]
[1731722564608,3.23169,3094.4,3094.0,0.7019]
[1731722565011,3.2316,3094.5,3094.0,0.7019]
[1731722566326,3.23115,3094.9,3094.2,2.9279467]
[1731722566502,3.23115,3094.9,3094.3,0.36388495]
[1731722566503,3.23121,3094.9,3094.3,0.36388495]
[1731722566710,3.23091,3095.1,3094.3,3.59562495]
[1731722567009,3.23102,3095.0,3094.3,3.59562495]
[1731722567645,4.03672,3095.2,3094.3,3.72562495]
[1731722568034,3.23111,3095.0,3094.5,0.8029]
[1731722568350,3.23082,3095.2,3094.5,0.8029]
[1731722568549,3.23063,3095.4,3094.5,0.8029]
[1731722568550,3.23094,3095.1,3094.5,0.8029]
[1731722569024,3.23094,3095.1,3094.5,0.9329]
[1731722571155,3.23107,3095.0,3094.5,0.9329]
[1731722571308,0.7933,3095.5,3094.5,0.9329]
[1731722571509,3.23113,3094.9,3094.5,0.9329]
[1731722572129,3.23088,3095.2,3094.5,0.9329]
[1731722572458,3.23099,3095.1,3094.5,0.9329]
[1731722573131,3.23088,3095.2,3094.5,4.16442]
[1731722573331,3.60996,3095.4,3094.5,0.9329]
[1731722573559,3.23092,3095.1,3094.5,0.9329]
[1731722573758,3.23092,3095.1,3094.6,0.416454]
[1731722574776,3.23063,3095.4,3094.6,0.416454]
[1731722575479,3.23072,3095.3,3094.7,3.47237253]
[1731722575702,3.23063,3095.4,3094.8,0.24104253]
[1731722576247,3.2307,3095.3,3094.8,0.24104253]
[1731722576448,3.2307,3095.3,3094.9,0.24115302]
[1731722576747,3.2307,3095.3,3095.0,0.24115302]
[1731722577262,3.2307,3095.3,3094.7,0.06461866]
[1731722577466,3.2307,3095.3,3094.8,0.24124294]
[1731722577793,3.2307,3095.3,3094.7,0.06461866]
[1731722577794,3.2307,3095.3,3094.9,0.24124294]
[1731722577959,3.2307,3095.3,3094.8,0.24124294]
[1731722578292,3.2307,3095.3,3094.9,0.24124294]
[1731722578491,3.2307,3095.3,3094.8,0.24124294]
[1731722578698,3.2307,3095.3,3094.9,0.24124294]
[1731722578879,3.2307,3095.3,3095.0,0.24124294]
[1731722579083,3.2307,3095.3,3094.6,3.647865]
[1731722579292,3.2307,3095.3,3094.7,0.30589586]
[1731722579497,3.2307,3095.3,3094.8,0.24127713]
[1731722579813,3.2307,3095.3,3094.9,0.24127713]
[1731722580117,3.2307,3095.3,3095.0,0.24127308]
[1731722580480,3.2307,3095.3,3094.7,0.06461874]
[1731722580811,3.2307,3095.3,3094.7,3.71876361]
[1731722584978,3.2309,3095.2,3094.5,4.16352749]
[1731722585937,3.23073,3095.3,3094.6,3.23141]
[1731722586228,3.23081,3095.2,3094.6,3.23141]
[1731722588295,3.23081,3095.2,3094.6,3.29603093]
[1731722588817,3.2306,3095.4,3094.8,3.2312]
[1731722589910,3.23022,3095.8,3095.3,0.7821]
[1731722590485,3.23039,3095.6,3095.3,0.7821]
[1731722591028,3.23022,3095.8,3095.3,0.7821]
[1731722593885,0.8121,3096.7,3095.8,0.7817]
[1731722594114,4.04142,3096.7,3096.0,3.22991]
[1731722594320,3.22953,3096.5,3096.0,0.7817]
[1731722594529,3.633452,3096.7,3096.0,0.7817]
[1731722594828,3.22906,3096.9,3096.0,0.7817]
[1731722595036,0.8121,3097.5,3096.5,4.01105]
[1731722595331,3.22882,3097.1,3096.5,4.01105]
[1731722595483,0.322882,3097.0,3096.6,3.22928]
[1731722595782,3.22872,3097.2,3096.6,3.22933]
[1731722596884,3.22853,3097.4,3096.7,3.22922]
[1731722597238,3.22864,3097.3,3096.8,0.7817]
[1731722597442,0.645717,3097.2,3096.8,0.7817]
[1731722598260,3.22833,3097.6,3096.8,0.7817]
[1731722598456,3.22852,3097.4,3096.8,0.7817]
[1731722598665,3.22833,3097.6,3096.7,3.29380845]
[1731722598666,3.22833,3097.6,3097.0,0.7817]
[1731722598825,3.22833,3097.6,3097.0,4.01059]
[1731722599155,3.22833,3097.6,3097.0,0.7817]
[1731722599319,0.322833,3097.5,3097.0,0.7817]
[1731722600043,0.322833,3097.5,3097.0,4.01062]
[1731722602003,0.322833,3097.5,3097.0,0.7817]
[1731722602004,3.551243,3097.5,3097.0,0.7817]
[1731722602162,3.22841,3097.5,3097.0,0.7817]
[1731722602478,3.22828,3097.7,3097.0,4.01061]
[1731722603062,1.436873,3098.1,3096.7,0.7817]
[1731722603063,3.22852,3097.4,3096.7,0.7817]
[1731722603260,0.322852,3097.3,3096.7,0.7817]
[1731722603553,3.22883,3097.1,3096.7,0.7817]
[1731722604285,3.22872,3097.2,3096.7,0.7817]
[1731722604581,3.22906,3096.9,3096.7,0.7817]
[1731722604858,3.22884,3097.1,3096.7,0.7817]
[1731722605418,3.22872,3097.2,3096.7,0.7817]
[1731722605645,3.22903,3096.9,3096.7,0.7817]
[1731722606370,3.551762,3097.1,3096.7,0.7817]
[1731722607358,0.322872,3097.1,3096.7,0.7817]
[1731722607717,3.551712,3097.1,3096.7,0.7817]
[1731722607917,0.6780432,3097.0,3096.7,0.7817]
[1731722608859,3.9069932,3097.0,3096.7,0.7817]
[1731722609685,0.6780432,3097.0,3096.7,0.7817]
[1731722610058,3.22872,3097.2,3096.7,0.7817]
[1731722610969,3.22873,3097.2,3096.7,0.7817]
[1731722611522,3.22882,3097.1,3096.7,0.7817]
[1731722611724,3.22862,3097.3,3096.7,0.7817]
[1731722611925,3.551582,3097.2,3096.7,0.7817]
[1731722612174,3.22872,3097.2,3096.7,0.7817]
[1731722612367,3.22843,3097.5,3096.7,0.7817]
[1731722612368,3.22843,3097.5,3096.7,4.01092]
[1731722612672,3.99111,3097.7,3096.8,0.7801]
[1731722612824,0.399111,3097.6,3097.0,0.7801]
[1731722613028,0.399111,3097.6,3097.2,0.7801]
[1731722613336,6.45609,3097.9,3097.2,0.7801]
[1731722613557,3.22818,3097.8,3097.2,0.7801]
[1731722614345,3.22818,3097.8,3097.2,4.00881]
[1731722614541,3.550998,3097.8,3097.2,4.00881]
[1731722615554,4.618483,3098.1,3097.2,4.00881]
[1731722615769,3.852583,3098.1,3097.2,3.22871]
[1731722615972,3.22798,3098.0,3097.4,0.7801]
[1731722616178,3.22806,3097.9,3097.4,0.7801]
[1731722617628,3.22811,3097.8,3097.4,0.7801]
[1731722617794,3.22806,3097.9,3097.4,0.7801]
[1731722617987,0.624773,3098.1,3097.4,0.7801]
[1731722617988,3.852553,3098.1,3097.4,4.00859]
[1731722618190,3.2276,3098.3,3097.4,0.7801]
[1731722618191,3.22757,3098.3,3097.4,0.7801]
[1731722618434,3.22757,3098.3,3097.3,2.9279467]
[1731722618435,3.2274,3098.5,3097.8,0.7801]
[1731722618733,3.2274,3098.5,3097.8,4.00812]
[1731722618936,3.92673,3098.5,3097.8,4.00812]
[1731722619097,0.7659,3098.6,3097.8,4.00812]
[1731722619293,3.22747,3098.4,3097.8,4.00812]
[1731722619807,3.22759,3098.3,3097.8,0.7801]
[1731722620005,3.22747,3098.4,3097.8,0.7801]
[1731722620318,3.22779,3098.1,3097.8,0.7801]
[1731722620845,3.22762,3098.3,3097.8,0.7801]
[1731722621053,3.22775,3098.2,3097.8,0.7801]
[1731722621230,3.22758,3098.3,3097.8,0.7801]
[1731722623132,3.22769,3098.2,3097.8,0.7801]
[1731722623327,3.22789,3098.0,3097.8,0.7801]
[1731722623646,3.22789,3098.0,3097.5,0.7801]
[1731722623803,3.22801,3097.9,3097.5,0.7801]
[1731722627299,3.9937,3098.1,3097.5,0.7801]
[1731722627607,3.2278,3098.1,3097.5,4.00847]
[1731722628030,3.2279,3098.0,3097.5,0.7801]
[1731722628702,3.95471,3098.1,3097.5,0.7801]
[1731722629142,3.22797,3098.0,3097.5,0.7801]
[1731722629346,3.95471,3098.1,3097.5,0.7801]
[1731722629505,3.228,3097.9,3097.5,0.7801]
[1731722630550,3.95471,3098.1,3097.5,0.7801]
[1731722630846,3.22789,3098.0,3097.5,0.7801]
[1731722631003,3.94625,3097.9,3097.5,0.7801]
[1731722631200,3.22799,3097.9,3097.5,0.7801]
[1731722634650,3.0,3098.5,3096.9,2.9279467]
[1731722634651,3.22848,3097.5,3097.1,0.7826]
[1731722634854,3.22864,3097.3,3096.9,0.7826]
[1731722635606,3.22873,3097.2,3096.9,0.7826]
[1731722635846,4.04234,3097.3,3096.7,0.63935425]
[1731722636051,3.22897,3097.0,3096.7,0.63935425]
[1731722636253,3.22897,3097.0,3096.6,0.7826]
[1731722636254,3.22934,3096.7,3096.1,0.7826]
[1731722636557,4.04304,3096.7,3096.1,0.7826]
[1731722636729,3.22957,3096.4,3095.8,0.7826]
[1731722636931,0.8137,3096.7,3095.8,0.7826]
[1731722636932,3.22953,3096.5,3095.8,0.7826]
[1731722637251,3.22967,3096.3,3095.8,0.7826]
[1731722637847,3.22953,3096.5,3095.8,0.7826]
[1731722638064,4.04296,3096.7,3095.9,3.23005]
[1731722638381,0.8137,3097.0,3095.9,3.29464778]
[1731722638557,3.22946,3096.5,3095.9,3.23005]
[1731722638866,3.22946,3096.5,3095.8,1.41732805]
[1731722638867,0.8137,3097.0,3095.8,1.41732805]
[1731722639037,6.22878,3097.2,3095.8,0.7826]
[1731722639038,3.22971,3096.3,3095.8,0.7826]
[1731722639565,4.04317,3096.5,3095.8,0.7826]
[1731722639566,3.22976,3096.2,3095.8,0.7826]
[1731722640122,3.22962,3096.4,3095.8,0.7826]
[1731722640316,4.04316,3096.5,3095.9,3.22999]
[1731722640564,4.04316,3096.5,3095.8,0.7826]
[1731722640565,4.04316,3096.5,3095.8,1.183898]
[1731722640715,3.22966,3096.3,3095.8,0.7826]
[1731722640919,3.22966,3096.3,3095.9,0.24086658]
[1731722641319,3.22966,3096.3,3095.8,0.7826]
[1731722642291,0.8137,3096.5,3095.8,0.7826]
[1731722642453,3.22994,3096.1,3095.8,0.7826]
[1731722642761,3.22978,3096.2,3095.8,0.7826]
[1731722643119,3.22987,3096.1,3095.8,0.7826]
[1731722643575,0.645955,3096.1,3095.6,0.63784526]
[1731722643859,3.22998,3096.0,3095.4,0.7826]
[1731722644164,3.22986,3096.1,3095.4,0.7826]
[1731722644320,3.8137,3096.5,3095.4,0.7826]
[1731722644321,3.23009,3095.9,3095.4,0.7826]
[1731722644959,3.23007,3096.0,3095.4,0.7826]
[1731722644960,3.23029,3095.7,3095.4,0.7826]
[1731722645264,3.23048,3095.6,3095.0,0.7826]
[1731722645460,3.553538,3095.5,3095.0,0.7826]
[1731722645761,3.23049,3095.5,3095.0,0.7826]
[1731722646132,3.2304,3095.6,3095.0,0.7826]
[1731722648800,3.2305,3095.5,3095.0,0.7826]
[1731722649130,3.23037,3095.7,3095.0,0.7826]
[1731722649309,3.23043,3095.6,3095.0,0.7826]
[1731722650130,3.23043,3095.6,3094.8,0.33668544]
[1731722650131,3.2299,3096.1,3095.2,0.7516]
[1731722650310,0.7726,3096.2,3095.3,3.23061]
[1731722650517,3.22998,3096.0,3095.3,3.23061]
[1731722651099,3.22979,3096.2,3095.5,3.23041]
[1731722651300,3.22979,3096.2,3095.5,0.7516]
[1731722651533,3.22979,3096.2,3095.5,1.15628906]
[1731722651715,3.22979,3096.2,3095.6,3.23037]
[1731722654338,3.22955,3096.4,3095.7,3.29480323]
[1731722654653,3.2292,3096.8,3096.2,3.22976]
[1731722654804,3.2292,3096.8,3096.3,0.398136]
[1731722655007,3.2292,3096.8,3096.2,3.22976]
[1731722655431,3.22896,3097.0,3096.2,3.22976]
[1731722655647,3.22896,3097.0,3096.4,0.7516]
[1731722656347,3.22904,3096.9,3096.4,0.7516]
[1731722657553,4.00142,3097.2,3096.4,0.7516]
[1731722657751,3.22918,3096.8,3096.4,0.7516]
[1731722658317,3.22902,3097.0,3096.4,0.7516]
[1731722658546,4.00134,3097.2,3096.4,0.7516]
[1731722658750,3.22904,3096.9,3096.4,0.7516]
[1731722659051,3.22914,3096.8,3096.4,0.7516]
[1731722659755,3.22925,3096.7,3096.4,0.7516]
[1731722660257,3.22896,3097.0,3096.4,0.7516]
[1731722660467,3.2291,3096.9,3096.4,0.7516]
[1731722660649,3.22914,3096.8,3096.4,0.7516]
[1731722660817,3.22934,3096.7,3096.4,0.7516]
[1731722662555,3.22909,3096.9,3096.4,0.7516]
[1731722663057,3.22934,3096.7,3096.4,0.7516]
[1731722663858,0.7726,3097.2,3096.4,0.7516]
[1731722664016,3.2294,3096.6,3096.4,0.7516]
[1731722664661,3.22917,3096.8,3096.4,0.7516]
[1731722664861,3.22925,3096.7,3096.4,0.7516]
[1731722665158,3.22935,3096.6,3096.4,0.7516]
[1731722665859,3.22917,3096.8,3096.4,0.7516]
[1731722665860,3.22945,3096.5,3096.4,0.7516]
[1731722666514,3.22917,3096.8,3096.4,0.7516]
[1731722666866,3.22932,3096.7,3096.4,0.7516]
[1731722668971,0.322917,3096.8,3096.1,0.817]
[1731722669141,3.22952,3096.5,3096.1,0.817]
[1731722670552,3.22924,3096.7,3096.1,0.817]
[1731722670760,3.22906,3096.9,3095.7,0.817]
[1731722670761,0.819,3096.6,3095.7,0.817]
[1731722671035,0.819,3096.6,3094.6,0.75596584]
[1731722671036,3.23018,3095.8,3095.5,0.817]
[1731722673865,3.22998,3096.0,3095.5,0.817]
[1731722674177,3.2298,3096.2,3095.5,4.48590489]
[1731722674178,3.22993,3096.1,3095.5,4.48590489]
[1731722674940,3.2298,3096.2,3095.5,4.48584489]
[1731722675178,3.22988,3096.1,3095.5,4.48584489]
[1731722675473,3.22962,3096.4,3095.8,0.817]
[1731722675680,3.22946,3096.5,3095.9,3.23006]
[1731722675989,3.22946,3096.5,3096.0,0.727714]
[1731722676341,3.22934,3096.7,3096.1,0.817]
[1731722676768,3.22937,3096.6,3096.1,0.817]
[1731722678219,3.22922,3096.8,3096.1,4.04685]
[1731722678418,3.22925,3096.7,3096.2,0.4774564]
[1731722680223,3.22883,3097.1,3096.3,0.817]
[1731722680547,0.819,3097.4,3096.3,0.817]
[1731722680748,3.22858,3097.4,3096.7,3.22924]
[1731722681043,3.22858,3097.4,3096.8,0.817]
[1731722681340,3.22873,3097.2,3096.8,0.817]
[1731722681627,3.22858,3097.4,3096.8,0.817]
[1731722681915,3.22873,3097.2,3096.8,0.817]
[1731722682320,3.22893,3097.0,3096.8,0.817]
[1731722682633,3.22873,3097.2,3096.8,0.817]
[1731722684432,3.22893,3097.0,3096.8,0.817]
[1731722684595,3.22883,3097.1,3096.8,0.817]
[1731722685231,3.22873,3097.2,3096.8,0.817]
[1731722685613,3.22843,3097.5,3096.8,0.817]
[1731722685863,3.22852,3097.4,3096.9,0.404621]
[1731722686018,3.22852,3097.4,3096.8,0.817]
[1731722686217,3.22852,3097.4,3096.8,0.88157614]
[1731722686557,3.22852,3097.4,3096.8,4.11070614]
[1731722686858,3.22831,3097.6,3096.8,1.61556375]
[1731722687065,3.22849,3097.5,3096.9,3.22903]
[1731722687420,3.22831,3097.6,3096.9,3.22902]
[1731722687620,3.22848,3097.5,3096.8,4.84469375]
[1731722687958,3.22848,3097.5,3096.8,4.11070614]
[1731722688170,3.22829,3097.7,3096.9,0.7947]
[1731722688466,3.22829,3097.7,3097.1,0.7947]
[1731722688680,3.22829,3097.7,3097.1,1.20351213]
[1731722688816,3.22829,3097.7,3097.1,0.7947]
[1731722689514,3.22829,3097.7,3097.1,0.7447]
[1731722689857,3.22837,3097.6,3097.1,0.7447]
[1731722690884,3.22792,3098.0,3097.1,0.7447]
[1731722691168,3.22804,3097.9,3097.2,0.06457137]
[1731722691335,3.22811,3097.8,3097.1,3.22875]
[1731722691535,3.22811,3097.8,3097.2,0.0645668]
[1731722692796,3.22811,3097.8,3097.3,0.7947]
[1731722695248,3.2282,3097.7,3097.3,0.7947]
[1731722700412,0.37589,3098.0,3097.1,0.65369724]
[1731722700413,3.22853,3097.4,3097.1,0.7947]
[1731722700911,3.22853,3097.4,3096.5,3.22941]
[1731722700912,3.22853,3097.4,3096.7,0.7947]
[1731722701092,3.22864,3097.3,3096.7,4.726328]
[1731722701603,3.98696,3097.9,3096.7,4.726328]
[1731722701604,3.22832,3097.6,3097.0,4.02355]
[1731722701813,3.2281,3097.8,3097.1,3.2288]
[1731722701978,3.2281,3097.8,3097.2,1.03530013]
[1731722702162,3.2281,3097.8,3097.2,0.7947]
[1731722702359,3.2282,3097.7,3097.2,0.7947]
[1731722702599,0.7589,3098.1,3097.2,0.7947]
[1731722702600,3.22789,3098.0,3097.2,0.85927139]
[1731722702907,3.22789,3098.0,3097.4,0.7947]
[1731722703264,3.22789,3098.0,3097.5,0.24076219]
[1731722703467,3.76809484,3098.3,3097.4,0.7947]
[1731722703676,3.22811,3097.8,3097.4,0.7947]
[1731722704744,3.22787,3098.1,3097.4,0.7947]
[1731722704885,3.22793,3098.0,3097.4,0.7947]
[1731722705085,3.22793,3098.0,3097.4,4.02318]
[1731722705313,3.22793,3098.0,3097.4,0.7947]
[1731722705509,3.22787,3098.1,3097.4,0.7947]
[1731722705828,3.228,3097.9,3097.4,0.7947]
[1731722706423,6.45609,3097.9,3097.4,0.7947]
[1731722706583,3.2281,3097.8,3097.4,0.7947]
[1731722709335,3.22858,3097.4,3096.9,0.7813]
[1731722709543,0.32281,3097.8,3096.9,0.7813]
[1731722709544,3.55093,3097.8,3096.9,0.7813]
[1731722709698,3.22812,3097.8,3097.1,3.22874]
[1731722710688,3.2282,3097.7,3097.1,3.22874]
[1731722711010,3.2282,3097.7,3097.0,3.29341146]
[1731722711366,3.2282,3097.7,3097.1,3.22879]
[1731722711909,3.228,3097.9,3097.2,3.22866]
[1731722712125,4.01099,3098.1,3097.5,0.7813]
[1731722712126,3.22779,3098.1,3097.5,0.7813]
[1731722712433,3.2279,3098.0,3097.5,0.7813]
[1731722713555,3.22779,3098.1,3097.5,4.07425515]
[1731722713903,3.22758,3098.3,3097.6,3.22828]
[1731722714148,3.22758,3098.3,3097.7,0.7813]
[1731722715254,3.22758,3098.3,3097.7,0.8458573]
[1731722715546,3.22758,3098.3,3097.7,0.7813]
[1731722715724,3.22758,3098.3,3097.7,1.31984225]
[1731722716728,3.22758,3098.3,3097.7,1.25528495]
[1731722717038,3.22758,3098.3,3097.7,1.31984224]
[1731722717459,3.22768,3098.2,3097.7,1.31984224]
[1731722717637,3.22768,3098.2,3097.7,1.25528495]
[1731722718905,3.22768,3098.2,3097.6,3.95854952]
[1731722718906,0.7832,3098.6,3097.3,0.3226]
[1731722719208,0.7832,3097.9,3097.3,0.7813]
[1731722719551,3.22834,3097.6,3097.3,0.7813]
[1731722720668,3.22863,3097.3,3097.0,0.7813]
[1731722720960,3.22863,3097.3,3096.8,0.7813]
[1731722721119,0.7832,3097.6,3096.8,0.7813]
[1731722721324,3.22822,3097.7,3097.2,0.7813]
[1731722721657,3.22831,3097.6,3097.2,0.7813]
[1731722721826,3.22841,3097.5,3097.2,0.7813]
[1731722722320,3.22826,3097.7,3097.2,0.7813]
[1731722722541,3.22817,3097.8,3097.2,0.7813]
[1731722723005,3.22821,3097.7,3097.2,0.7813]
[1731722723452,3.22792,3098.0,3097.2,0.7813]
[1731722723658,3.22792,3098.0,3097.3,3.22861]
[1731722723824,3.22792,3098.0,3097.3,0.433271]
[1731722724032,3.22803,3097.9,3097.3,3.661871]
[1731722725161,3.22778,3098.1,3097.3,3.661871]
[1731722725162,3.2281,3097.8,3097.3,0.433271]
[1731722725708,3.2281,3097.8,3097.2,0.7813]
[1731722725709,3.22832,3097.6,3097.2,0.7813]
[1731722725908,3.22853,3097.4,3096.8,0.7813]
[1731722726113,3.22832,3097.6,3096.8,0.7813]
[1731722726442,3.22861,3097.3,3096.8,0.7813]
[1731722726843,6.45689,3097.5,3096.8,0.7813]
[1731722727157,3.22841,3097.5,3096.8,4.01043]
[1731722727850,3.22851,3097.4,3096.8,0.7813]
[1731722728560,3.22851,3097.4,3096.8,4.01043]
[1731722729545,3.629462,3097.6,3096.9,3.22903]
[1731722729855,3.629462,3097.6,3097.0,3.22891]
[1731722729856,3.22831,3097.6,3097.0,3.22891]
[1731722730012,3.22831,3097.6,3096.8,1.70058499]
[1731722730226,3.22846,3097.5,3096.9,0.55776534]
[1731722730425,3.22841,3097.5,3096.9,3.78670534]
[1731722731371,0.7832,3097.7,3096.9,3.78670534]
[1731722731372,3.22831,3097.6,3097.0,3.22892]
[1731722731962,3.22841,3097.5,3096.9,0.55776534]
[1731722732470,0.08266294,3097.4,3096.9,3.78679534]
[1731722732829,3.22831,3097.6,3096.9,3.78679534]
[1731722733029,0.08260049,3097.3,3097.1,0.8156]
[1731722733234,3.0,3097.8,3097.1,4.04434]
[1731722733528,0.08284027,3097.7,3097.2,3.22871]
[1731722734008,0.08284027,3097.7,3097.1,1.54909146]
[1731722734265,3.22832,3097.6,3097.1,1.1382]
[1731722734628,0.08249096,3097.5,3097.1,1.1382]
[1731722737811,0.08249096,3097.5,3097.1,4.367]
[1731722738284,3.2282,3097.7,3097.1,4.367]
[1731722738483,0.08243077,3097.4,3097.1,4.367]
[1731722738633,3.2282,3097.7,3097.1,5.126588]
[1731722738836,0.08237058,3097.3,3097.1,5.126588]
[1731722739063,3.22813,3097.8,3097.1,5.126588]
[1731722739243,0.08231038,3097.2,3097.1,5.19115746]
[1731722739557,0.08071071,3097.2,3097.1,5.19115746]
[1731722739730,3.22813,3097.8,3097.1,5.19115746]
[1731722739930,0.08101165,3097.7,3097.1,5.19115746]
[1731722740176,0.08101165,3097.7,3097.2,0.84200375]
[1731722740533,0.08101165,3097.7,3097.3,0.3226]
[1731722740734,3.22813,3097.8,3097.3,0.3226]
[1731722740937,0.08101165,3097.7,3097.3,0.3226]
[1731722741135,3.22813,3097.8,3097.3,0.3226]
[1731722741332,0.08101165,3097.7,3097.3,0.3226]
[1731722741598,3.22799,3097.9,3097.3,0.84994932]
[1731722741748,0.08095147,3097.6,3097.3,0.84994932]
[1731722741942,3.22799,3097.9,3097.3,0.84994932]
[1731722742196,0.8133,3098.2,3097.3,0.3226]
[1731722742197,3.22821,3097.7,3097.3,0.3226]
[1731722742359,3.22821,3097.7,3097.2,0.3226]
[1731722742555,0.08095147,3097.6,3097.2,0.3226]
[1731722742997,0.08095147,3097.6,3097.3,3.2286]
[1731722743164,3.22801,3097.9,3097.3,3.988161]
[1731722743364,0.08089835,3097.5,3097.3,3.2286]
[1731722743565,3.22801,3097.9,3097.3,3.2286]
[1731722743884,0.08083816,3097.4,3097.3,3.2286]
[1731722744083,3.22801,3097.9,3097.3,3.2286]
[1731722744479,0.08107889,3097.8,3097.3,3.2286]
[1731722745185,0.08107889,3097.8,3097.2,0.3226]
[1731722745388,3.30919889,3097.8,3097.2,0.3226]
[1731722745592,3.22812,3097.8,3097.2,3.55131]
[1731722745750,0.08101872,3097.7,3097.2,3.55131]
[1731722746177,0.08101872,3097.7,3097.2,1.082172]
[1731722746449,0.08101872,3097.7,3097.2,0.3226]
[1731722746688,3.30923872,3097.7,3097.2,0.3226]
[1731722746849,3.22831,3097.6,3097.2,0.3226]
[1731722747250,0.08089835,3097.5,3097.2,0.3226]
[1731722747850,4.04652,3097.7,3097.2,0.3226]
[1731722748251,0.08095853,3097.6,3097.2,0.3226]
[1731722749124,0.08095853,3097.6,3097.2,3.988014]
[1731722749825,0.08095853,3097.6,3097.2,0.759294]
[1731722750028,0.08095853,3097.6,3097.2,0.3226]
[1731722750788,3.30927853,3097.6,3097.2,0.3226]
[1731722751024,3.22818,3097.8,3097.2,0.3226]
[1731722751224,3.2282,3097.7,3097.2,0.3226]
[1731722751427,3.22847,3097.5,3097.1,0.8156]
[1731722751647,0.80861172,3097.7,3097.1,0.8156]
[1731722751802,3.22903,3096.9,3096.8,0.8264]
[1731722752011,3.22903,3096.9,3096.6,1.16338548]
[1731722752203,3.30956716,3096.9,3096.6,0.33698548]
[1731722752582,3.30956716,3096.9,3096.8,4.05553]
[1731722752583,0.08053716,3096.9,3096.8,4.05553]
[1731722752782,0.08053716,3096.9,3096.8,5.43310122]
[1731722753027,0.8197,3098.0,3097.4,0.8264]
[1731722753329,3.22764,3098.3,3097.5,3.22831]
[1731722753631,3.22701,3098.9,3097.7,3.22819]
[1731722753632,0.322764,3098.2,3097.7,3.22819]
[1731722753828,0.08131796,3098.2,3097.7,3.22819]
[1731722754222,3.22759,3098.3,3097.7,3.22819]
[1731722754383,0.0812578,3098.1,3097.7,3.22819]
[1731722754585,0.08131796,3098.2,3097.7,3.583269]
[1731722754827,0.08119763,3098.0,3097.7,3.583269]
[1731722755033,0.0812578,3098.1,3097.7,3.583269]
[1731722755189,0.08113747,3097.9,3097.7,3.583269]
[1731722755387,3.22759,3098.3,3097.7,3.22819]
[1731722756102,0.08131796,3098.2,3097.7,3.22819]
[1731722761019,0.08131796,3098.2,3097.6,0.06455662]
[1731722761020,3.30900796,3098.2,3097.5,4.19131176]
[1731722761345,0.08131796,3098.2,3097.6,3.22822]
[1731722761517,0.08131796,3098.2,3097.6,4.05281318]
[1731722762036,0.08131796,3098.2,3097.6,0.82459318]
[1731722762253,0.08131796,3098.2,3097.7,3.2282]
[1731722762823,0.08131796,3098.2,3097.7,3.29275663]
[1731722763739,0.08131796,3098.2,3097.7,0.06455663]
[1731722763947,3.22737,3098.5,3097.8,3.22809]
[1731722764173,3.22749,3098.4,3097.8,3.22809]
[1731722764343,0.07877333,3098.4,3097.8,3.22809]
[1731722764854,3.30624333,3098.4,3097.8,3.22809]
[1731722765442,3.30624333,3098.4,3097.9,0.8264]
[1731722766350,3.30624333,3098.4,3098.0,0.2411816]
[1731722766505,3.30624333,3098.4,3098.1,0.2411816]
[1731722766708,3.30624333,3098.4,3097.9,0.8264]
[1731722766939,3.30624333,3098.4,3098.0,0.24118022]
[1731722767128,3.30624333,3098.4,3098.1,0.24118022]
[1731722767329,3.30624333,3098.4,3097.9,0.8264]
[1731722767533,3.30624333,3098.4,3098.0,0.2411743]
[1731722767702,3.30624333,3098.4,3098.1,0.2411743]
[1731722767959,3.30624333,3098.4,3098.1,0.24117632]
[1731722768484,4.03238,3098.2,3098.1,0.24117632]
[1731722768883,4.11106383,3098.2,3098.1,0.24117632]
[1731722770490,4.66106383,3098.2,3098.1,0.24117632]
[1731722771813,3.22824,3097.7,3097.1,0.8026]
[1731722772023,3.22824,3097.7,3097.2,0.43124673]
[1731722772174,3.22824,3097.7,3097.3,0.24124673]
[1731722772376,0.07576399,3097.6,3097.4,0.24124673]
[1731722772570,3.30406399,3097.6,3097.5,0.24124673]
[1731722772816,3.22851,3097.5,3097.2,0.19]
[1731722773110,3.22857,3097.4,3097.3,0.2412796]
[1731722773311,3.30419789,3097.4,3097.3,0.19]
[1731722774012,0.07562789,3097.4,3097.3,0.43125764]
[1731722774523,3.22836,3097.6,3097.3,0.43125764]